fUST/lending_fUST_20240320
["ID","MTS","AMOUNT","RATE_DAILY","PERIOD"]
[319592249,1710885046692,-262.035617,0.00047917,7]
[319592251,1710885046701,-262.035617,0.00047917,7]
[319592253,1710885046711,-262.035617,0.00047917,7]
[319592255,1710885046720,-262.035617,0.00047917,7]
[319592257,1710885046731,-262.035617,0.00047917,7]
[319592259,1710885046741,-262.035617,0.00047917,7]
[319592261,1710885046750,-262.035617,0.00047917,7]
[319592263,1710885046760,-262.035617,0.00047917,7]
[319592265,1710885046769,-262.035617,0.00047917,7]
[319592267,1710885046778,-262.035617,0.00047917,7]
[319592269,1710885046788,-2371.36870973,0.00047924,2]
[319592271,1710885046798,-151.0,0.00047933,7]
[319592273,1710885046808,-4734.38,0.00047933,120]
[319592275,1710885046818,-2371.36870973,0.00047935,2]
[319592277,1710885046830,-539.11925568,0.00047943,4]
[319592279,1710885046839,-268.11286862,0.00047943,4]
[319592281,1710885046849,-164.18145471,0.00047943,4]
[319592283,1710885046859,-160.0,0.00047944,30]
[319592285,1710885046868,-176.26158679,0.00047944,30]
[319592287,1710885046878,-500.0,0.00047945,7]
[319592302,1710885047006,-500.0,0.00047945,7]
[319592304,1710885047015,-500.0,0.00047945,7]
[319592306,1710885047024,-269.06006007,0.00047945,7]
[319592308,1710885047033,-859.36,0.00047945,7]
[319592310,1710885047043,-859.36,0.00047945,7]
[319592312,1710885047056,-859.36,0.00047945,7]
[319592314,1710885047065,-859.36,0.00047945,7]
[319592316,1710885047074,-859.36,0.00047945,7]
[319592318,1710885047086,-859.36,0.00047945,7]
[319592320,1710885047095,-500.0,0.00047945,7]
[319592322,1710885047105,-500.0,0.00047945,7]
[319592324,1710885047114,-500.0,0.00047945,7]
[319592326,1710885047123,-500.0,0.00047945,7]
[319592328,1710885047133,-312.13770086,0.00047945,7]
[319592330,1710885047141,-500.0,0.00047945,7]
[319592332,1710885047151,-500.0,0.00047945,7]
[319592334,1710885047160,-500.0,0.00047945,7]
[319592336,1710885047169,-500.0,0.00047945,7]
[319592338,1710885047180,-500.0,0.00047945,7]
[319592340,1710885047190,-500.0,0.00047945,7]
[319592342,1710885047199,-500.0,0.00047945,7]
[319592344,1710885047208,-500.0,0.00047945,7]
[319592346,1710885047218,-500.0,0.00047945,7]
[319592348,1710885047227,-500.0,0.00047945,7]
[319592350,1710885047236,-500.0,0.00047945,7]
[319592352,1710885047246,-500.0,0.00047945,7]
[319592354,1710885047256,-500.0,0.00047945,7]
[319592356,1710885047265,-500.0,0.00047945,7]
[319592358,1710885047274,-500.0,0.00047945,7]
[319592360,1710885047283,-500.0,0.00047945,7]
[319592362,1710885047292,-500.0,0.00047945,7]
[319592364,1710885047303,-500.0,0.00047945,7]
[319592366,1710885047312,-500.0,0.00047945,7]
[319592368,1710885047322,-500.0,0.00047945,7]
[319592370,1710885047331,-500.0,0.00047945,7]
[319592372,1710885047340,-500.0,0.00047945,7]
[319592374,1710885047349,-500.0,0.00047945,7]
[319592376,1710885047360,-500.0,0.00047945,7]
[319592378,1710885047369,-500.0,0.00047945,7]
[319592380,1710885047379,-500.0,0.00047945,7]
[319592382,1710885047389,-500.0,0.00047945,7]
[319592384,1710885047398,-500.0,0.00047945,7]
[319592386,1710885047408,-500.0,0.00047945,7]
[319592388,1710885047417,-500.0,0.00047945,7]
[319592390,1710885047428,-996.93,0.00047945,7]
[319592392,1710885047439,-996.93,0.00047945,7]
[319592394,1710885047448,-996.93,0.00047945,7]
[319592396,1710885047457,-996.93,0.00047945,7]
[319592398,1710885047467,-996.93,0.00047945,7]
[319592400,1710885047477,-996.93,0.00047945,7]
[319592402,1710885047486,-500.0,0.00047945,7]
[319592404,1710885047495,-76.49022352,0.00047945,7]
[319592407,1710885047517,-423.50977648,0.00047945,7]
[319592409,1710885047526,-500.0,0.00047945,7]
[319592411,1710885047535,-500.0,0.00047945,7]
[319592413,1710885047545,-500.0,0.00047945,7]
[319592415,1710885047556,-559.93330163,0.00047945,7]
[319592417,1710885047565,-500.0,0.00047945,7]
[319592419,1710885047575,-500.0,0.00047945,7]
[319592421,1710885047584,-500.0,0.00047945,7]
[319592423,1710885047593,-500.0,0.00047945,7]
[319592425,1710885047602,-500.0,0.00047945,7]
[319592427,1710885047611,-210.25097452,0.00047945,7]
[319592429,1710885047620,-530.98317716,0.00047945,7]
[319592431,1710885047629,-500.0,0.00047945,7]
[319592433,1710885047638,-500.0,0.00047945,7]
[319592435,1710885047647,-455.16566895,0.00047945,7]
[319600546,1710885137033,390.7869812,0.0003292,7]
[319608768,1710886036184,-154.84515485,0.0003292,14]
[319608769,1710886036205,-210.49701262,0.00043179,4]
[319608770,1710886036225,-677.88253361,0.0004318,4]
[319608771,1710886036244,-154.84515485,0.0004318,4]
[319608772,1710886036264,-1000.7003269,0.00043181,2]
[319608773,1710886036284,-916.70476031,0.00043279,4]
[319608774,1710886036304,-154.84515485,0.0004328,4]
[319608775,1710886036324,-502.45202016,0.0004328,4]
[319608776,1710886043096,-481.78111187,0.00037307,7]
[319608777,1710886043116,-446.72314011,0.00043178,4]
[319608778,1710886043137,-227.00711287,0.00043179,2]
[319608779,1710886165170,-166.24095408,0.00041179,4]
[319608780,1710886165190,-154.84515485,0.00041179,4]
[319608781,1710886165211,-150.0,0.0004118,2]
[319608782,1710886165232,-166.666666,0.00043295,2]
[319608783,1710886165256,-2484.09040037,0.0004335,2]
[319608784,1710886165277,-421.63498524,0.00043351,4]
[319608785,1710886165297,-187.19355656,0.00043353,2]
[319608786,1710886165318,-300.0,0.00043826,3]
[319608787,1710886165338,-23373.18818986,0.00043827,2]
[319608935,1710886241439,-261.93709761,0.00043389,120]
[319608936,1710886241448,-1516.81181014,0.00043827,2]
[319608937,1710886241457,-2000.0,0.00043963,21]
[319608938,1710886241467,-166.666666,0.00044476,2]
[319608939,1710886241476,-341.4592322,0.00044651,2]
[319608940,1710886241486,-660.009239,0.000447,120]
[319608941,1710886241494,-2000.0,0.00044777,21]
[319608942,1710886241504,-2765.25,0.000448,30]
[319608943,1710886241513,-1695.9332617,0.00045,120]
[319608944,1710886241523,-1021.04916178,0.00045,120]
[319608945,1710886241532,-2000.0,0.0004559,30]
[319608946,1710886241684,-166.666666,0.00045656,2]
[319608947,1710886241719,-184.798761,0.0004568,2]
[319608948,1710886241729,-150.0,0.0004618,2]
[319608949,1710886241738,-2920.199503,0.00046403,30]
[319608950,1710886241749,-4515.9124,0.00046414,30]
[319608951,1710886241758,-166.666666,0.00046837,2]
[319608952,1710886241771,-6028.48310159,0.00047,4]
[319608953,1710886241781,-3423.15643398,0.00047435,120]
[319608954,1710886241793,-497.54723284,0.00047435,120]
[319608998,1710886652280,-287.03663134,0.000449,2]
[319608999,1710886652307,-150.5,0.0004497,35]
[319609000,1710886652333,-150.5,0.0004497,35]
[319609001,1710886652359,-150.5,0.0004498,35]
[319609002,1710886652393,-150.5,0.0004498,35]
[319609003,1710886652431,-150.5,0.0004499,35]
[319609004,1710886652463,-150.5,0.0004499,35]
[319609005,1710886652494,-169.906622,0.00044998,4]
[319609006,1710886652525,-189.41,0.00044999,7]
[319609007,1710886652555,-189.41,0.00044999,7]
[319609008,1710886652587,-189.41,0.00044999,7]
[319609009,1710886652615,-266.0,0.00044999,3]
[319609010,1710886652648,-356.56479607,0.00044999,120]
[319609011,1710886652678,-300.0,0.00044999,120]
[319609012,1710886652707,-500.0,0.00044999,120]
[319609013,1710886652737,-197.54723284,0.00044999,120]
[319609014,1710886652769,-4200.4635134,0.00045,3]
[319609015,1710886652798,-74707.25120435,0.00045,10]
[319609016,1710886665365,-82456.0,0.00045,10]
[319609017,1710886668699,-82456.0,0.00045,10]
[319609018,1710886672504,-169.906622,0.00044999,4]
[319609019,1710886672645,-82286.093378,0.00045,10]
[319609020,1710886678813,-82456.0,0.00045,10]
[319609021,1710886682138,-82456.0,0.00045,10]
[319609022,1710886719633,-191.35775423,0.000429,2]
[319609023,1710886719661,-169.906622,0.00044999,4]
[319609024,1710886719693,-82094.73562377,0.00045,10]
[319609026,1710886826702,-154.84515485,0.00038418,4]
[319609027,1710886826730,-828.77020049,0.00038418,4]
[319609028,1710886826763,-513.29711523,0.00038418,4]
[319609029,1710886826792,-463.46175351,0.00038419,4]
[319609030,1710886826824,-802.11666527,0.00038419,4]
[319609031,1710886826853,-257.70314427,0.00038419,4]
[319609032,1710886826883,-641.48441671,0.0003842,2]
[319609033,1710886826913,-621.07422084,0.00040341,2]
[319609034,1710886826942,-509.34267128,0.00041423,4]
[319609035,1710886826973,-286.98194087,0.00041423,4]
[319609036,1710886827009,-1196.38721552,0.00041423,4]
[319609037,1710886827038,-621.99169794,0.00041423,4]
[319609038,1710886827069,-2092.49904843,0.00041424,120]
[319609039,1710886827098,-1250.63405566,0.00041841,4]
[319609040,1710886827127,-7289.16901894,0.00041841,4]
[319609041,1710886827265,-154.84515485,0.00041842,4]
[319609042,1710886827295,-2267.07366811,0.00041842,4]
[319609043,1710886827322,-500.00536743,0.00041842,4]
[319609044,1710886827351,-204.98847702,0.00041842,4]
[319609045,1710886827379,-2000.0,0.00041843,21]
[319609046,1710886827406,-620.05371104,0.00042358,15]
[319609047,1710886827434,-166.666666,0.00042753,2]
[319609048,1710886827462,-2000.0,0.00043187,21]
[319609049,1710886827490,-166.666666,0.00043919,2]
[319609050,1710886827521,-24900.0,0.00043991,2]
[319609051,1710886827549,-389.432582,0.00044296,2]
[319609052,1710886827578,-168.44558621,0.0004443,11]
[319609053,1710886827606,-2000.0,0.0004453,21]
[319609054,1710886827634,-5163.58423891,0.0004455,2]
[319609055,1710886827663,-9463.42291499,0.000449,2]
[319609056,1710886827690,-565.05896377,0.00044953,4]
[319609057,1710886827719,-180.91,0.0004497,35]
[319609058,1710886827748,-150.5,0.0004498,35]
[319609059,1710886827776,-150.5,0.0004499,35]
[319609060,1710886827804,-239.82304948,0.00044998,4]
[319609061,1710886827831,-304.59473727,0.00044998,4]
[319609062,1710886827859,-4673.75894306,0.00044998,4]
[319609063,1710886827886,-181.04658595,0.00044998,4]
[319609064,1710886827913,-1048.84524534,0.00044998,4]
[319609065,1710886827941,-154.87609912,0.00044998,4]
[319609066,1710886827970,-154.87609912,0.00044998,4]
[319609067,1710886828001,-154.87609912,0.00044998,5]
[319609068,1710886828028,-827.82227359,0.00044998,4]
[319609069,1710886828055,-367.16265237,0.00044998,4]
[319609070,1710886828081,-363.11876131,0.00044998,4]
[319609071,1710886828108,-3994.64253719,0.00044998,4]
[319609072,1710886828134,-169.906622,0.00044999,4]
[319609073,1710886828162,-500.0,0.00044999,120]
[319609074,1710886828190,-500.0,0.00044999,120]
[319609075,1710886828217,-78.73797894,0.00044999,120]
[319609076,1710886889206,-154.84515485,0.00038414,7]
[319609077,1710886889236,-369.86416266,0.00038415,4]
[319609078,1710886889263,-4231.2918955,0.00038416,4]
[319609079,1710886890884,492.48820507,0.00038413,2]
[319609084,1710887136091,-154.84515485,0.00038413,30]
[319609085,1710887136112,-916.70476031,0.00042308,4]
[319609086,1710887136136,-237.20597973,0.00042309,4]
[319609088,1710887228121,-387.75501164,0.00042301,4]
[319609089,1710887253258,-486.85413762,0.00027792,2]
[319609090,1710887253279,-486.85413762,0.0003002,7]
[319609091,1710887253299,-1345.60368921,0.000423,4]
[319609092,1710887253321,-413.43740365,0.00042301,4]
[319609094,1710887347120,-154.84515485,0.00027509,2]
[319609095,1710887347144,-191.80476881,0.0002751,2]
[319609096,1710887347164,-559.15919287,0.0002751,2]
[319609097,1710887347184,-337.12691269,0.00027511,2]
[319609098,1710887347206,-751.34054397,0.00027512,120]
[319609099,1710887350229,-166.666666,0.00027512,120]
[319609100,1710887356258,-0.24665244,0.00027512,120]
[319609101,1710887356280,-1196.38721552,0.00040693,4]
[319609102,1710887356301,-166.666666,0.00040694,2]
[319609103,1710887356321,-2267.07366811,0.00041323,4]
[319609104,1710887356342,-432.4934297,0.00041324,4]
[319609105,1710887356365,-166.666666,0.00041804,2]
[319609106,1710887356385,-947.16594341,0.000422,4]
[319609107,1710887356410,-8295.15428701,0.00042201,2]
[319609108,1710887356431,-154.84515485,0.00042301,120]
[319609109,1710887356451,-586.62527455,0.00042303,4]
[319609110,1710887356472,-300.0,0.00042303,3]
[319609111,1710887356492,-24900.0,0.00042463,2]
[319609112,1710887356512,-10000.0,0.000425,30]
[319609113,1710887356532,-177.57183615,0.000429,2]
[319609114,1710887356553,-166.666666,0.00042913,2]
[319609115,1710887356574,-401.3601608,0.0004297,2]
[319609116,1710887356594,-2000.0,0.00043,66]
[319609117,1710887356614,-2000.0,0.0004301,66]
[319609118,1710887356634,-2000.0,0.0004302,66]
[319609119,1710887356661,-2000.0,0.0004303,66]
[319609120,1710887356682,-2000.0,0.0004304,66]
[319609121,1710887356702,-2000.0,0.0004305,66]
[319609122,1710887356723,-2000.0,0.0004306,66]
[319609123,1710887356744,-3773.34326312,0.00043626,120]
[319609150,1710887432472,-2000.0,0.00041771,21]
[319609152,1710887432482,-154.84515485,0.00042301,120]
[319609154,1710887432492,-336.92563888,0.00042748,4]
[319609156,1710887432502,-2000.0,0.0004307,66]
[319609158,1710887432512,-2000.0,0.0004308,66]
[319609160,1710887432521,-2000.0,0.0004309,66]
[319609161,1710887432531,-2000.0,0.000431,66]
[319609164,1710887432541,-2000.0,0.0004311,66]
[319609168,1710887432550,-2000.0,0.0004312,66]
[319609170,1710887432559,-2000.0,0.0004313,66]
[319609172,1710887432569,-2000.0,0.00043133,21]
[319609174,1710887432578,-2000.0,0.0004314,66]
[319609176,1710887432588,-2000.0,0.0004315,66]
[319609178,1710887432598,-2000.0,0.0004316,66]
[319609181,1710887432608,-2000.0,0.0004317,66]
[319609184,1710887432618,-2000.0,0.0004318,66]
[319609186,1710887432628,-2000.0,0.0004319,66]
[319609188,1710887432637,-2000.0,0.000432,66]
[319609190,1710887432647,-2000.0,0.0004321,66]
[319609192,1710887432657,-2000.0,0.0004322,66]
[319609205,1710887432779,-2000.0,0.0004323,67]
[319609207,1710887432790,-2000.0,0.0004324,67]
[319609209,1710887432801,-2000.0,0.0004325,67]
[319609211,1710887432811,-2000.0,0.0004326,67]
[319609213,1710887432822,-2000.0,0.0004327,67]
[319609214,1710887432834,-2000.0,0.0004328,67]
[319609216,1710887432845,-2000.0,0.0004329,67]
[319609218,1710887432856,-2000.0,0.000433,67]
[319609220,1710887432867,-2000.0,0.0004331,67]
[319609222,1710887432878,-2000.0,0.0004332,67]
[319609224,1710887432889,-2000.0,0.0004333,67]
[319609226,1710887432900,-2000.0,0.0004334,67]
[319609228,1710887432911,-2000.0,0.0004335,67]
[319609231,1710887432922,-2000.0,0.0004336,67]
[319609233,1710887432934,-2000.0,0.0004337,67]
[319609235,1710887432944,-2000.0,0.0004338,67]
[319609236,1710887432957,-2000.0,0.0004339,67]
[319609239,1710887432968,-2000.0,0.000434,67]
[319609240,1710887432978,-2000.0,0.0004341,67]
[319609242,1710887432988,-2000.0,0.0004342,67]
[319609245,1710887432998,-2000.0,0.0004343,67]
[319609246,1710887433009,-2000.0,0.0004344,67]
[319609249,1710887433019,-2000.0,0.0004345,67]
[319609251,1710887433030,-2000.0,0.0004346,67]
[319609252,1710887433039,-2000.0,0.0004347,67]
[319609254,1710887433049,-2000.0,0.0004348,67]
[319609256,1710887433059,-2692.192439,0.0004349,67]
[319609258,1710887433069,-10000.0,0.000435,15]
[319609260,1710887433078,-7698.84540305,0.00043626,30]
[319609263,1710887433090,-2301.15459695,0.00043626,30]
[319609265,1710887433100,-166.666666,0.00044023,2]
[319609266,1710887433110,-250.0,0.00044296,2]
[319609267,1710887433119,-520.731467,0.00044296,2]
[319609268,1710887433128,-3887.759899,0.00044296,120]
[319609270,1710887433139,-2000.0,0.00044494,21]
[319609271,1710887433148,-6229.7991138,0.0004455,2]
[319609273,1710887433158,-516.53813065,0.00044899,120]
[319609274,1710887433168,-10929.03385693,0.000449,30]
[319609275,1710887433196,-5626.72312917,0.000449,30]
[319609314,1710887438292,-500.0,0.00043429,31]
[319609315,1710887438301,-500.0,0.00043429,31]
[319609316,1710887438312,-500.0,0.00043429,31]
[319609317,1710887438321,-166.75055813,0.00043429,31]
[319609318,1710887438331,-11956.89769699,0.000449,30]
[319609319,1710887438344,-13192.54253538,0.000449,30]
[319609320,1710887438356,-1691.0154313,0.000449,30]
[319609321,1710887438368,-479.73851477,0.000449,30]
[319609322,1710887438592,-662.4115978,0.000449,30]
[319609361,1710887441950,-33563.33615685,0.000449,30]
[319609362,1710887441961,-539.08921604,0.000449,2]
[319609363,1710887441970,-969.12191438,0.000449,2]
[319609364,1710887441980,-237.136871,0.000449,2]
[319609365,1710887441989,-2000.0,0.000449,72]
[319609366,1710887441998,-2000.0,0.0004491,72]
[319609367,1710887442008,-2000.0,0.0004492,72]
[319609368,1710887442017,-2000.0,0.0004493,72]
[319609369,1710887442026,-2000.0,0.0004494,72]
[319609370,1710887442036,-2000.0,0.0004495,72]
[319609371,1710887442045,-947.5993684,0.00044953,4]
[319609372,1710887442055,-2000.0,0.0004496,72]
[319609373,1710887442064,-2000.0,0.0004497,72]
[319609374,1710887442074,-2000.0,0.0004498,72]
[319609375,1710887442084,-2000.0,0.0004499,72]
[319609376,1710887442094,-351.90215923,0.00044998,4]
[319609377,1710887442103,-417.56633425,0.00044998,4]
[319609378,1710887442112,-797.91829302,0.00044998,4]
[319609379,1710887442122,-169.906622,0.00044998,4]
[319609380,1710887442131,-155.24643198,0.00044998,4]
[319609381,1710887442142,-476.57785965,0.00044998,4]
[319609382,1710887442151,-204.98847702,0.00044998,4]
[319609383,1710887442161,-4059.08526458,0.00044998,4]
[319609384,1710887442170,-154.86062544,0.00044998,4]
[319609385,1710887442181,-505.16179007,0.00044998,4]
[319609386,1710887442190,-609.22602206,0.00044998,2]
[319609387,1710887442200,-528.37737523,0.00044998,4]
[319609388,1710887442210,-2451.45877195,0.00044998,4]
[319609389,1710887442220,-291.97029899,0.00044998,4]
[319609390,1710887442230,-469.27928661,0.00044998,4]
[319609391,1710887442240,-160.91641444,0.00044998,4]
[319609392,1710887442249,-316.73378917,0.00044998,4]
[319609393,1710887442260,-751.26954896,0.00044998,4]
[319609394,1710887442270,-197.01977495,0.00044998,7]
[319609395,1710887442374,-620.99673148,0.00044998,4]
[319609396,1710887442384,-174.01856561,0.00044998,4]
[319609397,1710887442393,-169.81543714,0.00044999,4]
[319609398,1710887442403,-247.29959425,0.00044999,4]
[319609399,1710887442411,-17392.42618375,0.00045,10]
[319609400,1710887442448,-1401.49993163,0.00045,10]
[319609597,1710887837258,454.39719512,0.00023304,2]
[319609598,1710887999735,10000.0,0.00024,2]
[319609599,1710888199152,154.86062544,0.00024,2]
[319609600,1710888217197,238.57055994,0.00024,2]
[319609601,1710888231043,-578.2839502,0.00024144,4]
[319609602,1710888231064,-441.47100002,0.00024243,2]
[319609603,1710888231084,-596.01897216,0.00024243,2]
[319609604,1710888231104,-157.48043496,0.00024243,2]
[319609605,1710888231124,-154.84515485,0.00024243,2]
[319609606,1710888231145,-25.90048781,0.00024244,2]
[319609607,1710888258333,-210.03373486,0.00024243,2]
[319609608,1710888258358,-131.57994715,0.00024244,2]
[319609609,1710888258383,-439.25062195,0.0002449,2]
[319609610,1710888332112,-1115.30555024,0.00028499,2]
[319609611,1710888438252,-168.0,0.000265,3]
[319609612,1710888440092,-424.60893455,0.00026206,2]
[319609613,1710888440113,-487.57702885,0.000265,3]
[319609614,1710888510198,-397.9864893,0.000244,2]
[319609615,1710888510330,-8.12217325,0.000244,2]
[319609617,1710888545092,-3325.92797115,0.000255,3]
[319609618,1710888545114,-378.67568975,0.00026235,2]
[319609619,1710888545136,-406.10866255,0.000294,2]
[319609620,1710888545156,-658.34614727,0.0003,4]
[319609621,1710888545177,-400.0,0.00031499,3]
[319609622,1710888545198,-2225.68495773,0.000315,5]
[319609623,1710888550165,-7774.31504227,0.000315,5]
[319609624,1710888550187,-10000.0,0.000325,10]
[319609625,1710888550208,-166.666666,0.00032877,2]
[319609626,1710888550227,-211.58599706,0.00033499,4]
[319609627,1710888550247,-10000.0,0.000335,14]
[319609628,1710888550270,-10000.0,0.000335,10]
[319609629,1710888550293,-166.666666,0.00033646,2]
[319609630,1710888550314,-406.10866255,0.000344,2]
[319609631,1710888550333,-166.666666,0.00034415,2]
[319609632,1710888550354,-10000.0,0.000345,18]
[319609633,1710888550375,-300.0,0.00034649,3]
[319609634,1710888550396,-10000.0,0.00035,17]
[319609635,1710888550417,-166.666666,0.00035185,2]
[319609636,1710888550437,-166.666666,0.00035954,2]
[319609637,1710888550459,-175.558822,0.00036481,2]
[319609638,1710888550480,-10000.0,0.000365,7]
[319609639,1710888550501,-166.666666,0.00036723,2]
[319609640,1710888550529,-800.79324474,0.00037497,4]
[319609641,1710888550552,-10000.0,0.000375,20]
[319609642,1710888550572,-10000.0,0.000385,10]
[319609643,1710888550592,-10000.0,0.000395,15]
[319609644,1710888550615,-10000.0,0.000395,20]
[319609645,1710888550636,-187.19355656,0.00039898,2]
[319609646,1710888550656,-10000.0,0.0004,20]
[319609647,1710888550679,-10000.0,0.000415,25]
[319609648,1710888550700,-10000.0,0.000425,25]
[319609649,1710888550720,-10000.0,0.000425,30]
[319609650,1710888550741,-3841.31771431,0.0004319,2]
[319609651,1710888550763,-10000.0,0.000435,30]
[319609652,1710888550786,-160.859042,0.00044022,2]
[319609653,1710888550806,-160.0,0.00044295,30]
[319609654,1710888550826,-160.0,0.00044295,30]
[319609655,1710888550847,-250.0,0.00044296,2]
[319609656,1710888550868,-3775.147571,0.00044296,120]
[319609657,1710888550889,-24900.0,0.00044296,2]
[319609658,1710888550909,-260.365733,0.00044296,2]
[319609659,1710888550930,-421.63498524,0.0004445,4]
[319609660,1710888550951,-1000.0,0.000447,2]
[319609661,1710888550972,-7022.77205188,0.000448,2]
[319609662,1710888550992,-22193.53063863,0.000449,30]
[319609666,1710888567100,-2000.0,0.00040043,21]
[319609667,1710888567121,-655.94222216,0.00041837,21]
[319609774,1710888632776,-1344.05777784,0.00041837,21]
[319609776,1710888632785,-166.666666,0.00043103,2]
[319609778,1710888632794,-1631.16674677,0.0004363,21]
[319609780,1710888632804,-368.83325323,0.0004363,21]
[319609782,1710888632815,-4996.71,0.00043835,120]
[319609784,1710888632825,-4996.71,0.00043835,120]
[319609786,1710888632834,-166.666666,0.00044278,2]
[319609788,1710888632843,-4996.71,0.00044295,120]
[319609791,1710888632852,-3438.86275888,0.000449,30]
[319609793,1710888632862,-213.4231839,0.000449,2]
[319609795,1710888632872,-746.57804742,0.00044998,60]
[319609797,1710888632881,-182.44608308,0.00044998,4]
[319609798,1710888632890,-269.42483516,0.00044998,4]
[319609799,1710888632899,-205.28734808,0.00044998,4]
[319609800,1710888632908,-1177.40322805,0.00044998,4]
[319609801,1710888632918,-367.16265237,0.00044998,4]
[319609802,1710888632927,-1196.38721552,0.00044998,4]
[319609803,1710888632937,-656.90225417,0.00044998,4]
[319609804,1710888632946,-258.20295478,0.00044998,4]
[319609805,1710888632956,-282.19503724,0.00044998,4]
[319609806,1710888632967,-1170.11427163,0.00044998,4]
[319609807,1710888632977,-299.99495216,0.00044998,4]
[319609808,1710888632987,-210.09855599,0.00044998,4]
[319609809,1710888632996,-4996.71,0.00044998,120]
[319609810,1710888633005,-4996.71,0.00044998,120]
[319609811,1710888633014,-5583.97494564,0.00044998,4]
[319609812,1710888633023,-19958.56115078,0.00044999,3]
[319609813,1710888633034,-11219.68138381,0.00044999,3]
[319609814,1710888633043,-1203.69,0.00044999,6]
[319609815,1710888633052,-1438.97701351,0.00044999,120]
[319609831,1710888638507,-1127.64108445,0.00044999,120]
[319609832,1710888638519,-1206.53406206,0.00044999,120]
[319609833,1710888638533,-965.32128001,0.00044999,120]
[319609835,1710888638819,-258.23655997,0.00044999,120]
[319609836,1710888638833,-4393.0044554,0.00044999,120]
[319609929,1710888643656,-397.03999994,0.00044999,120]
[319609945,1710888646590,-206.66554466,0.00044999,120]
[319609946,1710888646599,-118.67308743,0.00044999,120]
[319609955,1710889451460,-2870.8218,0.000245,4]
[319609956,1710889451539,-58.5882,0.000245,4]
[319609957,1710889629182,-154.84515485,0.000245,7]
[319609958,1710889629203,-154.84515485,0.00026103,2]
[319609959,1710889629224,-799.42265916,0.00026104,2]
[319609960,1710889637910,439.5409065,0.00023398,2]
[319609961,1710889652163,-154.84515485,0.00026102,2]
[319609962,1710889652190,-1500.66621,0.00026102,2]
[319609963,1710889653104,-117.09766324,0.00026102,2]
[319609964,1710889653125,-1570.60595844,0.00026103,2]
[319609965,1710889653368,-154.84515485,0.00026103,2]
[319609966,1710889653389,-201.27766774,0.00026104,2]
[319609967,1710889653410,-154.84515485,0.00026204,2]
[319609968,1710889653430,-166.666666,0.00033006,2]
[319609969,1710889653451,-250.0,0.00033149,2]
[319609970,1710889653472,-166.666666,0.00033906,2]
[319609971,1710889653493,-260.365733,0.00034561,2]
[319609972,1710889653513,-730.40145403,0.00034728,12]
[319609977,1710889769152,-1173.50322814,0.00032461,2]
[319609978,1710889769172,-529.85765129,0.00034728,12]
[319609979,1710889769191,-166.666666,0.00034806,2]
[319609980,1710889769211,-202.68,0.00035,120]
[319609981,1710889769231,-2831.360678,0.00035616,120]
[319609982,1710889769250,-166.666666,0.00035706,2]
[319609983,1710889769270,-300.0,0.00036095,3]
[319609984,1710889769292,-23502.684818,0.00036096,2]
[319609985,1710889769314,-166.666666,0.00036605,2]
[319609986,1710889769334,-1173.50322814,0.00037461,2]
[319609987,1710889769354,-166.666666,0.00037505,2]
[319609988,1710889769374,-183.96379566,0.00039544,9]
[319609989,1710889769397,-167.0,0.0004,120]
[319609990,1710889769416,-3000.0,0.0004,2]
[319609991,1710889769436,-2831.360678,0.00041553,120]
[319609992,1710889769456,-1173.50322814,0.00042461,2]
[319609993,1710889769477,-10000.0,0.000425,25]
[319609994,1710889769497,-3080.508484,0.00043227,21]
[319609995,1710889769517,-10000.0,0.000435,35]
[319609996,1710889769536,-192.08086551,0.00043897,2]
[319609997,1710889769555,-309.67318844,0.00043898,2]
[319609998,1710889769576,-2110.21913802,0.00043994,4]